bitfinex/quotes_SOLUSD_20250710
["timestamp","ask_amount","ask_price","bid_price","bid_amount"]
[1752170353553,5.83923586,160.88,160.86,34.45]
[1752170354670,5.83923586,160.88,160.87,0.69]
[1752170355261,5.83923586,160.88,160.86,33.76]
[1752170355475,5.83923586,160.87,160.86,33.76]
[1752170355667,5.83923586,160.87,160.86,34.45]
[1752170355866,0.97432314,160.91,160.86,34.45]
[1752170356073,5.83923586,160.87,160.86,34.45]
[1752170356278,0.97432314,160.91,160.86,34.45]
[1752170356582,5.83923586,160.88,160.86,34.45]
[1752170356771,5.83923586,160.87,160.86,34.45]
[1752170357172,0.28432314,160.91,160.86,34.45]
[1752170357477,5.83923586,160.88,160.87,0.69]
[1752170358774,5.83923586,160.88,160.86,33.76]
[1752170358972,5.83923586,160.87,160.86,33.76]
[1752170360277,5.89923586,160.87,160.86,33.76]
[1752170360480,5.89923586,160.87,160.86,34.45]
[1752170363265,0.06,160.87,160.86,34.45]
[1752170363789,0.06,160.87,160.86,57.07391983]
[1752170366080,0.06,160.87,160.86,51.23468397]
[1752170366665,0.06,160.87,160.86,34.45]
[1752170367164,0.06,160.87,160.86,34.43]
[1752170367375,5.83923586,160.88,160.86,34.43]
[1752170367565,5.83923586,160.88,160.87,0.71]
[1752170367903,5.83923586,160.88,160.85,0.71]
[1752170368056,5.83923586,160.88,160.87,33.72]
[1752170368258,5.83923586,160.88,160.87,34.43]
[1752170368459,5.83923586,160.88,160.87,0.71]
[1752170368660,5.83923586,160.88,160.87,34.43]
[1752170369172,5.83923586,160.88,160.87,0.71]
[1752170369363,0.69,160.92,160.87,34.43]
[1752170369562,5.83923586,160.89,160.88,0.71]
[1752170369977,5.83923586,160.9,160.88,0.71]
[1752170370364,5.83923586,160.9,160.89,0.71]
[1752170370665,5.83923586,160.9,160.89,34.43]
[1752170371480,5.83923586,160.92,160.89,34.43]
[1752170371687,5.83923586,160.93,160.9,0.71]
[1752170371889,5.83923586,160.92,160.91,33.72]
[1752170373100,5.83923586,160.92,160.9,33.7]
[1752170373405,5.83923586,160.91,160.88,33.7]
[1752170373572,5.83923586,160.89,160.88,33.7]
[1752170373776,5.83923586,160.89,160.88,34.41]
[1752170374068,5.83923586,160.9,160.88,34.41]
[1752170374269,5.83923586,160.89,160.84,16.78468397]
[1752170374501,0.28432314,160.95,160.88,0.71]
[1752170374502,0.69,160.93,160.88,0.71]
[1752170374665,5.83923586,160.89,160.88,34.41]
[1752170374864,5.83923586,160.89,160.88,33.7]
[1752170375268,5.83923586,160.89,160.87,0.71]
[1752170375467,5.83923586,160.88,160.87,0.71]
[1752170375669,5.83923586,160.88,160.87,34.41]
[1752170375864,5.83923586,160.88,160.87,33.7]
[1752170376084,5.83923586,160.88,160.87,34.41]
[1752170376696,0.69,160.94,160.87,34.41]
[1752170376992,5.83923586,160.89,160.88,0.71]
[1752170377175,5.83923586,160.89,160.87,34.41]
[1752170377377,5.83923586,160.88,160.87,34.41]
[1752170377600,5.83923586,160.88,160.87,33.7]
[1752170377777,12.36847172,160.88,160.83,0.71]
[1752170377978,5.83923586,160.84,160.8,16.78468397]
[1752170378200,5.83923586,160.81,160.8,0.71]
[1752170378398,5.83923586,160.81,160.8,34.41]
[1752170379796,5.83923586,160.81,160.8,34.39]
[1752170380204,5.83923586,160.81,160.8,0.71]
[1752170380517,0.69,160.87,160.8,51.17468397]
[1752170380676,0.69,160.87,160.81,0.71]
[1752170381013,5.83923586,160.84,160.81,0.71]
[1752170381185,5.83923586,160.88,160.81,0.71]
[1752170381382,0.14216157,160.9,160.82,22.62391983]
[1752170381702,5.83923586,160.86,160.83,34.39]
[1752170382201,5.83923586,160.86,160.84,0.71]
[1752170387100,5.83923586,160.85,160.84,0.71]
[1752170387306,5.83923586,160.85,160.83,33.68]
[1752170387605,5.83923586,160.85,160.83,34.39]
[1752170388489,0.69,160.88,160.83,34.39]
[1752170388685,5.83923586,160.84,160.83,33.68]
[1752170389090,0.69,160.87,160.83,33.66]
[1752170389276,0.69,160.87,160.84,0.06]
[1752170389479,5.83923586,160.85,160.84,0.06]
[1752170393787,5.83923586,160.85,160.84,0.06]
[1752170395512,0.28432314,160.9,160.84,0.77]
[1752170395513,0.69,160.89,160.84,0.77]
[1752170395697,0.28432314,160.9,160.84,0.77]
[1752170395698,5.83923586,160.85,160.84,0.77]
[1752170396604,5.83923586,160.85,160.84,0.06]
[1752170397010,6.52923586,160.85,160.84,0.06]
[1752170397500,6.52923586,160.85,160.8,0.44122763]
[1752170397709,5.83923586,160.82,160.79,16.78468397]
[1752170398086,0.7,160.88,160.79,16.78468397]
[1752170398398,6.53923586,160.88,160.81,16.78468397]
[1752170398594,5.83923586,160.84,160.82,33.64]
[1752170399713,5.83923586,160.84,160.83,0.71]
[1752170400112,0.7,160.87,160.82,33.64]
[1752170400326,0.98432314,160.9,160.83,0.71]
[1752170400488,5.83923586,160.87,160.83,0.71]
[1752170400690,5.83923586,160.87,160.83,6.54923586]
[1752170400909,0.7,160.92,160.86,5.83923586]
[1752170401112,0.03,160.93,160.89,5.83923586]
[1752170401333,0.03,160.93,160.92,22.62391983]
[1752170401496,5.86923586,160.93,160.92,33.62]
[1752170401813,5.86923586,160.93,160.87,2.9283]
[1752170402023,5.83923586,160.9,160.88,0.71]
[1752170402185,5.83923586,160.9,160.88,34.33]
[1752170402391,0.73,160.93,160.88,33.62]
[1752170402392,5.83923586,160.89,160.88,33.62]
[1752170402604,5.83923586,160.9,160.88,34.33]
[1752170402926,0.03,160.93,160.89,23.33391983]
[1752170403119,5.83923586,160.92,160.89,0.71]
[1752170403516,5.83923586,160.9,160.87,0.71]
[1752170403707,5.83923586,160.89,160.88,34.33]
[1752170403906,0.7,160.92,160.88,33.62]
[1752170404096,0.7,160.92,160.88,34.33]
[1752170404297,5.83923586,160.89,160.88,34.33]
[1752170404525,0.03,160.93,160.88,34.33]
[1752170404694,0.03,160.93,160.89,0.71]
[1752170404889,5.86923586,160.93,160.89,0.71]
[1752170405090,5.83923586,160.91,160.89,0.71]
[1752170405404,5.83923586,160.9,160.88,33.62]
[1752170405605,5.83923586,160.89,160.88,33.62]
[1752170405816,0.7,160.92,160.88,34.33]
[1752170406000,5.83923586,160.89,160.88,33.62]
[1752170406497,12.37847172,160.89,160.85,33.6]
[1752170406820,12.37847172,160.89,160.73,31.19473695]
[1752170406821,5.83923586,160.86,160.79,3.3988]
[1752170407027,5.83923586,160.81,160.79,0.71]
[1752170407206,5.83923586,160.81,160.79,34.31]
[1752170407390,0.28432314,160.87,160.77,28.44578397]
[1752170407391,5.83923586,160.8,160.77,0.71]
[1752170407730,5.83923586,160.78,160.77,0.71]
[1752170407893,5.83923586,160.78,160.71,0.71]
[1752170408098,5.83923586,160.74,160.7,29.5088]
[1752170408418,5.83923586,160.74,160.69,0.2]
[1752170408419,5.83923586,160.71,160.69,0.2]
[1752170408591,0.28432314,160.76,160.69,0.2]
[1752170408592,5.83923586,160.7,160.69,0.2]
[1752170408797,6.823559,160.7,160.69,0.2]
[1752170409922,0.28432314,160.69,160.62,0.2]
[1752170410120,5.83923586,160.63,160.62,0.2]
[1752170410503,6.53923586,160.63,160.62,0.2]
[1752170411004,10.74629299,160.63,160.62,0.2]
[1752170411396,0.28432314,160.62,160.5,0.71]
[1752170411602,9.76196985,160.54,160.5,0.71]
[1752170411901,0.28432314,160.59,160.5,0.71]
[1752170411902,9.76196985,160.52,160.5,0.71]
[1752170412098,9.76196985,160.51,160.46,10.84696446]
[1752170412304,0.7,160.5,160.46,10.13696446]
[1752170412604,9.76196985,160.48,160.46,6.89089418]
[1752170412837,9.76196985,160.47,160.46,6.89089418]
[1752170413031,0.7,160.52,160.46,6.89089418]
[1752170413204,9.76196985,160.47,160.46,6.89089418]
[1752170413400,36.74629299,160.47,160.46,6.89089418]
[1752170413900,36.74629299,160.47,160.37,0.71]
[1752170414131,9.76196985,160.38,160.37,0.71]
[1752170414329,26.14216157,160.45,160.34,0.71]
[1752170414538,0.7,160.44,160.34,0.71]
[1752170414698,9.76196985,160.4,160.34,0.71]
[1752170414900,9.76196985,160.36,160.34,0.71]
[1752170415124,0.7,160.4,160.3,0.71]
[1752170415125,9.76196985,160.35,160.3,0.71]
[1752170415330,9.76196985,160.33,160.31,0.71]
[1752170415641,9.76196985,160.32,160.29,0.71]
[1752170415836,9.76196985,160.32,160.27,43.38196985]
[1752170416044,9.76196985,160.33,160.29,0.71]
[1752170416340,0.7,160.38,160.3,0.71]
[1752170416635,9.76196985,160.34,160.3,0.71]
[1752170416836,9.76196985,160.32,160.28,0.71]
[1752170417007,0.7,160.37,160.28,0.71]
[1752170417008,9.76196985,160.31,160.28,0.71]
[1752170417203,9.76196985,160.31,160.25,26.84]
[1752170417204,0.7,160.39,160.31,16.78468397]
[1752170417401,0.7,160.43,160.36,9.76196985]
[1752170417610,9.76196985,160.47,160.42,9.76196985]
[1752170417905,0.7,160.49,160.42,0.71]
[1752170417906,9.76196985,160.46,160.42,0.71]
[1752170418109,9.76196985,160.43,160.4,33.6]
[1752170418412,9.76196985,160.43,160.39,0.71]
[1752170418413,9.76196985,160.42,160.39,0.71]
[1752170418601,9.76196985,160.41,160.36,0.71]
[1752170418809,13.92158721,160.41,160.37,34.33]
[1752170419011,13.92158721,160.41,160.38,0.71]
[1752170419740,13.92158721,160.44,160.39,14.63158721]
[1752170419910,13.92158721,160.44,160.4,0.71]
[1752170420111,13.92158721,160.43,160.4,0.71]
[1752170420325,13.92158721,160.42,160.38,16.78468397]
[1752170420521,13.92158721,160.42,160.38,0.71]
[1752170420926,26.7,160.49,160.41,13.92158721]
[1752170421136,13.92158721,160.46,160.42,14.63158721]
[1752170421303,26.7,160.49,160.42,0.71]
[1752170421508,13.92158721,160.45,160.42,0.71]
[1752170421832,13.92158721,160.43,160.38,0.71]
[1752170422058,0.7,160.48,160.38,0.71]
[1752170422059,0.98432314,160.48,160.38,0.71]
[1752170422209,0.98432314,160.48,160.39,47.56158721]
[1752170422402,0.98432314,160.48,160.39,48.27158721]
[1752170422403,13.92158721,160.43,160.39,48.27158721]
[1752170422638,13.92158721,160.43,160.4,0.71]
[1752170422842,13.92158721,160.44,160.4,0.71]
[1752170423006,0.98432314,160.48,160.41,0.71]
[1752170423203,13.92158721,160.44,160.41,0.71]
[1752170423829,26.0,160.49,160.42,0.71]
[1752170424009,13.92158721,160.47,160.42,0.71]
[1752170424214,13.92158721,160.46,160.42,0.71]
[1752170424452,13.92158721,160.48,160.44,13.92158721]
[1752170424745,13.92158721,160.48,160.44,48.27158721]
[1752170425154,13.92158721,160.48,160.44,34.35]
[1752170425445,13.92158721,160.47,160.45,0.71]
[1752170425648,0.7,160.53,160.45,0.71]
[1752170425941,13.92158721,160.49,160.45,0.71]
[1752170426143,13.92158721,160.5,160.46,14.63158721]
[1752170426516,13.92158721,160.5,160.46,0.71]
[1752170426717,0.7,160.53,160.46,0.71]
[1752170427021,13.92158721,160.5,160.46,0.71]
[1752170427229,13.92158721,160.5,160.45,30.70627118]
[1752170427838,13.92158721,160.5,160.42,26.0]
[1752170427839,13.92158721,160.47,160.4,0.14216157]
[1752170428034,0.14216157,160.51,160.43,33.62]
[1752170428217,13.92158721,160.46,160.43,33.62]
[1752170428416,13.92158721,160.46,160.44,16.78468397]
[1752170429344,0.14216157,160.51,160.44,16.78468397]
[1752170429552,13.92158721,160.46,160.44,16.78468397]
[1752170430442,13.92158721,160.47,160.44,17.48468397]
[1752170430649,13.92158721,160.46,160.44,16.78468397]
[1752170430859,13.92158721,160.46,160.43,16.78468397]
[1752170431033,13.92158721,160.46,160.43,50.40468397]
[1752170431637,0.68,160.55,160.46,16.78468397]
[1752170431948,0.68,160.55,160.47,33.62]
[1752170431949,13.92158721,160.49,160.47,33.62]
[1752170432140,13.92158721,160.5,160.47,33.62]
[1752170432336,13.92158721,160.49,160.47,34.32]
[1752170432645,13.92158721,160.48,160.47,33.62]
[1752170432944,13.92158721,160.48,160.45,50.40468397]
[1752170433142,13.92158721,160.49,160.46,0.7]
[1752170433448,13.92158721,160.5,160.47,0.7]
[1752170433650,0.03,160.52,160.48,0.7]
[1752170433829,13.95158721,160.52,160.49,17.48468397]
[1752170434136,0.03,160.52,160.49,51.10468397]
[1752170434331,0.03,160.52,160.5,0.7]
[1752170434643,0.03,160.52,160.51,16.78468397]
[1752170434825,0.03,160.52,160.51,31.40627118]
[1752170435345,0.03,160.52,160.5,16.78468397]
[1752170435844,13.95158721,160.52,160.5,16.78468397]
[1752170436438,13.95158721,160.52,160.49,34.32]
[1752170436816,13.95158721,160.52,160.49,33.62]
[1752170437039,13.95158721,160.52,160.5,0.7]
[1752170437239,0.03,160.52,160.5,0.7]
[1752170437736,0.03,160.52,160.5,17.48468397]
[1752170439839,9.80080459,160.52,160.49,33.62]
[1752170440029,9.77080459,160.5,160.49,33.6]
[1752170440343,9.77080459,160.5,160.46,16.78468397]
[1752170440519,9.77080459,160.48,160.47,50.38468397]
[1752170440719,9.77080459,160.48,160.47,33.6]
[1752170441537,0.68,160.51,160.47,33.6]
[1752170441843,0.03,160.52,160.48,27.25548856]
[1752170442044,0.03,160.52,160.51,26.69765013]
[1752170442221,0.68,160.64,160.53,0.14216157]
[1752170442421,0.68,160.64,160.54,51.06468397]
[1752170442422,9.77080459,160.57,160.54,51.06468397]
[1752170442623,9.77080459,160.56,160.55,33.58]
[1752170442832,13.89488053,160.56,160.55,33.58]
[1752170443746,13.89488053,160.58,160.55,34.28]
[1752170443950,13.89488053,160.58,160.56,0.7]
[1752170444436,13.89488053,160.58,160.55,33.58]
[1752170444636,0.68,160.62,160.55,33.58]
[1752170444637,0.68,160.62,160.56,16.78468397]
[1752170444840,13.89488053,160.6,160.56,31.3795645]
[1752170445029,13.89488053,160.6,160.58,16.78468397]
[1752170445229,13.89488053,160.61,160.58,33.58]
[1752170445427,0.68,160.64,160.59,16.78468397]
[1752170445428,13.89488053,160.62,160.59,16.78468397]
[1752170445628,13.89488053,160.63,160.6,0.7]
[1752170445833,14.2129,160.68,160.61,33.58]
[1752170446147,13.89488053,160.62,160.59,33.58]
[1752170446339,0.68,160.63,160.59,33.58]
[1752170446340,13.89488053,160.6,160.59,33.58]
[1752170446550,13.89488053,160.62,160.59,34.28]
[1752170447266,13.89488053,160.61,160.59,33.58]
[1752170448356,13.89488053,160.62,160.6,16.78468397]
[1752170448860,13.89488053,160.63,160.6,17.48468397]
[1752170450358,13.89488053,160.63,160.61,33.56]
[1752170450959,13.89488053,160.62,160.58,89.0]
[1752170451144,13.89488053,160.59,160.56,89.0]
[1752170451343,13.89488053,160.57,160.55,33.56]
[1752170451540,0.68,160.59,160.54,33.56]
[1752170451541,13.89488053,160.56,160.54,33.56]
[1752170451862,26.28432314,160.64,160.56,16.78468397]
[1752170452068,26.68,160.65,160.58,16.78468397]
[1752170452267,26.68,160.65,160.59,34.26]
[1752170452268,13.89488053,160.62,160.59,34.26]
[1752170452770,13.89488053,160.62,160.6,17.48468397]
[1752170452938,13.89488053,160.63,160.6,17.48468397]
[1752170453141,13.89488053,160.62,160.61,33.56]
[1752170455152,13.89488053,160.62,160.59,122.54]
[1752170455466,0.68,160.64,160.59,122.54]
[1752170455467,0.96432314,160.64,160.59,122.54]
[1752170455762,13.89488053,160.62,160.59,123.24]
[1752170455960,13.89488053,160.62,160.6,17.48468397]
[1752170456164,0.68,160.66,160.61,0.7]
[1752170456349,0.68,160.66,160.61,33.54]
[1752170456350,13.89488053,160.63,160.61,33.54]
[1752170456749,0.68,160.65,160.61,122.54]
[1752170457048,13.89488053,160.64,160.62,0.7]
[1752170457456,13.89488053,160.64,160.62,89.0]
[1752170457750,13.89488053,160.63,160.62,105.78468397]
[1752170457948,14.58488053,160.63,160.62,89.0]
[1752170458265,13.89488053,160.63,160.62,89.0]
[1752170458463,0.69,160.63,160.6,33.54]
[1752170458649,13.89488053,160.61,160.6,33.54]
[1752170459647,13.89488053,160.61,160.59,16.78468397]
[1752170459843,0.69,160.63,160.59,50.32468397]
[1752170460070,13.89488053,160.61,160.59,50.32468397]
[1752170460269,13.89488053,160.6,160.57,89.0]
[1752170460456,13.89488053,160.6,160.55,16.78468397]
[1752170460457,13.89488053,160.58,160.55,105.28468397]
[1752170460652,13.89488053,160.56,160.52,89.78]
[1752170460871,13.89488053,160.53,160.52,0.06]
[1752170461170,0.97432314,160.59,160.53,0.72]
[1752170461376,11.6185,160.63,160.54,33.52]
[1752170461377,13.89488053,160.58,160.54,33.52]
[1752170461555,13.89488053,160.58,160.54,34.24]
[1752170461873,13.89488053,160.57,160.54,34.24]
[1752170462366,13.89488053,160.57,160.55,16.78468397]
[1752170462953,9.76571165,160.57,160.55,16.78468397]
[1752170463461,9.76571165,160.56,160.54,33.52]
[1752170464270,0.69,160.61,160.55,17.50468397]
[1752170464475,21.99908562,160.81,160.57,16.78468397]
[1752170464476,0.69,160.64,160.57,16.78468397]
[1752170464770,9.76571165,160.65,160.61,16.78468397]
[1752170464942,9.76571165,160.65,160.63,16.78468397]
[1752170465345,9.76571165,160.64,160.62,16.78468397]
[1752170465567,9.76571165,160.64,160.62,50.30468397]
[1752170465965,0.72,160.67,160.62,50.30468397]
[1752170466271,0.03,160.67,160.63,0.72]
[1752170466469,0.03,160.67,160.62,33.52]
[1752170466470,9.76571165,160.64,160.62,33.52]
[1752170466667,9.76571165,160.63,160.62,33.52]
[1752170466967,9.76571165,160.63,160.6,89.0]
[1752170467150,9.76571165,160.61,160.6,105.78468397]
[1752170467352,9.76571165,160.61,160.58,34.24]
[1752170467568,9.76571165,160.6,160.59,16.78468397]
[1752170467772,9.76571165,160.6,160.58,33.52]
[1752170468070,9.76571165,160.59,160.57,16.78468397]
[1752170468264,9.76571165,160.58,160.57,16.78468397]
[1752170468761,9.76571165,160.6,160.57,17.50468397]
[1752170469072,9.76571165,160.6,160.59,16.78468397]
[1752170469675,9.76571165,160.6,160.58,33.52]
[1752170469978,9.76571165,160.59,160.57,16.78468397]
[1752170470272,9.76571165,160.58,160.56,33.5]
[1752170470446,9.76571165,160.57,160.56,16.78468397]
[1752170470646,9.76571165,160.58,160.56,16.78468397]
[1752170470951,9.76571165,160.58,160.56,17.50468397]
[1752170471753,26.28432314,160.64,160.57,34.22]
[1752170471754,9.76571165,160.59,160.57,34.22]
[1752170471949,26.0,160.64,160.59,16.78468397]
[1752170472162,9.76571165,160.6,160.59,16.78468397]
[1752170472561,9.76571165,160.6,160.57,122.5]
[1752170472871,9.76571165,160.58,160.57,105.78468397]
[1752170473048,9.76571165,160.58,160.57,139.28468397]
[1752170473458,9.76571165,160.6,160.58,16.78468397]
[1752170473668,9.76571165,160.6,160.58,17.50468397]
[1752170473974,9.76571165,160.59,160.58,16.78468397]
[1752170474458,0.69,160.62,160.58,16.78468397]
[1752170474645,9.76571165,160.59,160.58,16.78468397]
[1752170474852,0.69,160.59,160.54,16.78468397]
[1752170475081,0.69,160.58,160.53,16.78468397]
[1752170475382,9.76571165,160.56,160.54,34.22]
[1752170475875,9.76571165,160.55,160.54,51.00468397]
[1752170476078,9.76571165,160.55,160.52,0.78]
[1752170476279,9.76571165,160.54,160.53,50.28468397]
[1752170476456,9.76571165,160.55,160.53,50.28468397]
[1752170476785,9.76571165,160.55,160.53,51.00468397]
[1752170477383,0.69,160.59,160.53,51.00468397]
[1752170477558,9.76571165,160.58,160.54,0.72]
[1752170477878,9.76571165,160.58,160.56,16.78468397]
[1752170478450,9.76571165,160.57,160.56,16.78468397]
[1752170478950,9.76571165,160.57,160.53,16.84468397]
[1752170479177,9.76571165,160.55,160.53,16.84468397]
[1752170479365,9.76571165,160.55,160.53,51.06468397]
[1752170479873,9.76571165,160.54,160.53,139.34468397]
[1752170480278,0.69,160.57,160.53,16.84468397]
[1752170480279,9.76571165,160.55,160.53,16.84468397]
[1752170480784,0.03,160.59,160.55,16.78468397]
[1752170481076,0.03,160.59,160.58,16.78468397]
[1752170481265,0.03,160.59,160.58,50.26468397]
[1752170481578,9.79571165,160.59,160.57,33.48]
[1752170481870,9.79571165,160.59,160.55,16.78468397]
[1752170481871,9.76571165,160.58,160.55,16.78468397]
[1752170482077,9.76571165,160.57,160.55,16.78468397]
[1752170483655,0.03,160.59,160.57,16.78468397]
[1752170484074,0.03,160.59,160.58,50.98468397]
[1752170484695,0.03,160.59,160.58,50.26468397]
[1752170484883,0.03,160.59,160.58,50.98468397]
[1752170486307,0.03,160.59,160.58,139.98468397]
[1752170486682,0.03,160.59,160.58,105.78468397]
[1752170486974,9.79571165,160.59,160.54,33.48]
[1752170487169,9.76571165,160.58,160.55,17.50468397]
[1752170487371,0.03,160.59,160.57,26.55039562]
[1752170487673,0.03,160.59,160.58,60.03039562]
[1752170488019,0.03,160.59,160.58,50.96468397]
[1752170489266,0.03,160.59,160.58,17.48468397]
[1752170489693,9.79571165,160.59,160.58,16.78468397]
[1752170489875,9.79571165,160.59,160.58,50.94468397]
[1752170490071,0.03,160.59,160.58,50.94468397]
[1752170490267,0.03,160.59,160.58,50.24468397]
[1752170490597,0.03,160.59,160.58,50.94468397]
[1752170491471,9.79571165,160.59,160.57,16.78468397]
[1752170491674,9.79571165,160.59,160.55,89.0]
[1752170491675,10.46571165,160.58,160.55,89.0]
[1752170491882,0.03,160.59,160.53,0.06]
[1752170491883,9.76571165,160.56,160.53,0.06]
[1752170492087,9.76571165,160.54,160.53,0.06]
[1752170492287,9.76571165,160.54,160.53,50.30468397]
[1752170492991,9.76571165,160.54,160.53,51.00468397]
[1752170493494,0.03,160.59,160.54,16.78468397]
[1752170493691,0.03,160.59,160.56,16.78468397]
[1752170493692,9.79571165,160.59,160.56,16.78468397]
[1752170493886,9.76571165,160.58,160.57,50.24468397]
[1752170494081,9.79571165,160.59,160.57,33.46]
[1752170494382,9.76571165,160.58,160.56,0.7]
[1752170494702,9.76571165,160.57,160.55,16.78468397]
[1752170494898,9.76571165,160.57,160.56,16.78468397]
[1752170495098,9.76571165,160.57,160.55,0.7]
[1752170495277,1.01432314,160.59,160.54,89.0]
[1752170495596,9.76571165,160.55,160.54,105.78468397]
[1752170495895,9.76571165,160.55,160.53,0.06]
[1752170496070,9.76571165,160.54,160.53,0.06]
[1752170496271,9.76571165,160.54,160.53,33.52]
[1752170496991,9.76571165,160.54,160.53,0.06]
[1752170497309,9.76571165,160.54,160.53,33.52]
[1752170497485,0.7,160.58,160.53,33.52]
[1752170497676,9.76571165,160.54,160.53,33.52]
[1752170497987,0.17216157,160.59,160.54,16.78468397]
[1752170498190,0.17216157,160.59,160.55,33.46]
[1752170498495,9.76571165,160.56,160.55,33.46]
[1752170499397,9.76571165,160.57,160.56,16.78468397]
[1752170499983,9.76571165,160.57,160.56,50.24468397]
[1752170500795,9.79571165,160.59,160.57,16.78468397]
[1752170500993,9.76571165,160.58,160.57,50.24468397]
[1752170501787,9.79571165,160.59,160.57,34.16]
[1752170502002,9.79571165,160.59,160.57,33.46]
[1752170502382,9.79571165,160.59,160.57,34.16]
[1752170503279,0.03,160.59,160.58,17.48468397]
[1752170503480,0.03,160.59,160.58,106.48468397]
[1752170503679,0.03,160.59,160.58,105.78468397]
[1752170504096,9.79571165,160.59,160.54,0.7]
[1752170504279,9.76571165,160.56,160.55,50.22468397]
[1752170504475,9.76571165,160.56,160.53,89.06]
[1752170504798,9.76571165,160.56,160.54,50.22468397]
[1752170505101,9.76571165,160.55,160.54,16.78468397]
[1752170505608,9.76571165,160.55,160.54,50.22468397]
[1752170505909,9.76571165,160.55,160.53,0.06]
[1752170506109,1.01432314,160.59,160.53,0.06]
[1752170506110,9.76571165,160.54,160.53,0.06]
[1752170506277,9.76571165,160.54,160.53,33.5]
[1752170506472,10.46571165,160.54,160.53,0.06]
[1752170506800,10.75003479,160.54,160.53,0.06]
[1752170510704,36.75003479,160.54,160.53,0.06]
[1752170510917,19.81574644,160.53,160.47,33.44]
[1752170511089,9.76571165,160.48,160.47,50.22468397]
[1752170511286,9.76571165,160.48,160.43,89.0]
[1752170511592,10.46571165,160.5,160.45,16.78468397]
[1752170511992,0.7,160.5,160.45,17.48468397]
[1752170512193,26.0,160.51,160.46,0.7]
[1752170512507,26.0,160.51,160.47,33.44]
[1752170512808,9.76571165,160.48,160.47,34.14]
[1752170513014,9.76571165,160.48,160.45,50.22468397]
[1752170513221,9.76571165,160.46,160.45,50.92468397]
[1752170513715,9.76571165,160.46,160.45,33.44]
[1752170514004,9.76571165,160.46,160.44,16.78468397]
[1752170514207,9.76571165,160.45,160.44,50.22468397]
[1752170515601,9.76571165,160.45,160.44,33.44]
[1752170515906,0.28432314,160.49,160.44,34.14]
[1752170516110,9.76571165,160.45,160.44,34.14]
[1752170516424,26.14216157,160.52,160.44,34.14]
[1752170516425,0.7,160.53,160.45,16.78468397]
[1752170516599,0.7,160.55,160.46,10.46571165]
[1752170516810,0.7,160.58,160.49,26.55039562]
[1752170517021,9.76571165,160.55,160.5,60.69039562]
[1752170517189,9.76571165,160.55,160.48,92.65239217]
[1752170517190,0.7,160.58,160.51,0.7]
[1752170517500,9.76571165,160.52,160.51,17.48468397]
[1752170517697,9.76571165,160.52,160.51,50.92468397]
[1752170519138,0.84216157,160.58,160.52,16.78468397]
[1752170519139,0.14216157,160.58,160.52,16.78468397]
[1752170519297,9.76571165,160.57,160.54,16.78468397]
[1752170519494,9.76571165,160.56,160.55,34.1]
[1752170519719,9.76571165,160.56,160.51,0.66]
[1752170519896,0.69,160.58,160.52,34.1]
[1752170520214,0.69,160.58,160.52,17.44468397]
[1752170520423,0.69,160.58,160.53,33.44]
[1752170521327,0.03,160.55,160.53,33.44]
[1752170521625,0.03,160.55,160.54,17.44468397]
[1752170521814,0.03,160.55,160.54,106.44468397]
[1752170522598,0.03,160.55,160.54,64.88229562]
[1752170522913,0.03,160.59,160.57,16.78468397]
[1752170523115,0.03,160.59,160.58,50.22468397]
[1752170523308,0.03,160.59,160.58,50.88468397]
[1752170523710,0.03,160.59,160.58,60.79255719]
[1752170524720,0.03,160.59,160.58,149.79255719]
[1752170525541,0.03,160.59,160.58,140.02684554]
[1752170526102,9.79571165,160.59,160.58,139.86468397]
[1752170526302,0.03,160.59,160.58,106.44468397]